Cogmind - Beta 9.6 @@@ ROGUE MODE // 2020.05.31 @ 01:58:51 Player: pGoos Result: Destroyed by G-50 Soldier with Heavy Laser Performance ------------- Evolutions (4) 2000 Regions Visited (7) 1400 Robots Destroyed (103) 515 Value Destroyed (3215) 3215 Prototype IDs (2) 40 Alien Tech Used (0) 0 Bonus (0) 0 TOTAL SCORE: 7170 Bonus ------- None Cogmind --------- Core Integrity 0/850 Matter 193/300 Energy 66/100 System Corruption 23% Temperature Cool (9) Movement Rolling (100) Ox1 Location -6/Extension Parts ------- > --- POWER (1) -------- (None) > --- PROPULSION (5) --- Wheel Compact Wheel > --- UTILITY (6) ------ Large Storage Unit Large Storage Unit Improved Terrain Scanner > --- WEAPON (3) ------- Magnetic Acceleration Cannon Remote Datajack > --- INVENTORY (16) --- (None) Peak State ------------ > --- POWER ------------ Fission Core > --- PROPULSION ------- Improved Titanium Leg Improved Titanium Leg Improved Titanium Leg Improved Titanium Leg Improved Titanium Leg > --- UTILITY ---------- Large Storage Unit Large Storage Unit Transport Network Coupler Improved Targeting Computer Heavy Armor Plating > --- WEAPON ----------- Particle Gun Plasma Cannon Gauss Cannon > --- INVENTORY -------- Fission Core Improved Titanium Leg Improved Titanium Leg Improved Titanium Leg Improved Heat Sink Improved Heat Sink Large Storage Unit Core Shielding Heavy Laser Minigun Minigun Minigun Grenade Launcher Long-range Missile Launcher Powered Hammer Katana [Rating: 51] Favorites ----------- Power Ion Engine Engine Ion Engine Power Core Fission Core Propulsion Light Treads Treads Light Treads Leg Aluminum Leg Wheel Compact Wheel Hover Unit Gravmag System Utility Large Storage Unit Device Improved Heat Sink Storage Large Storage Unit Processor Transport Network Coupler Protection Heavy Armor Plating Weapon Gauss Cannon Energy Gun Heavy EM Pulse Gun Energy Cannon Plasma Cannon Ballistic Gun Gauss Rifle Ballistic Cannon Gauss Cannon Launcher Long-range Missile Launcher Special Weapon Mining Laser Impact Weapon Powered Hammer Slashing Weapon Katana Build | -11 -10 -9 -8 -8 -7 -6 -6 ------- Run | Scr Mat Mat Mat Sto Fac Fac Ext Slots Evolved 8 | . . 2 2 . 2 2 . Power . | . . . . . . . . Propulsion 3 | . . 2 . . 1 . . Utility 4 | . . . 2 . 1 1 . Weapon 1 | . . . . . . 1 . Parts Attached 147 | 7 7 18 22 19 19 44 11 Power 15 | 1 . 2 2 2 3 3 2 Engine 7 | 1 . 2 2 . . . 2 Core 8 | . . . . 2 3 3 . Reactor . | . . . . . . . . Propulsion 61 | 2 . 10 6 11 12 17 3 Treads 19 | 2 . 4 5 4 3 1 . Leg 33 | . . 6 1 7 9 10 . Wheel 8 | . . . . . . 5 3 Hover 1 | . . . . . . 1 . Flight . | . . . . . . . . Utility 24 | 1 4 . 5 1 1 10 2 Device 7 | . . . . . . 6 1 Storage 9 | 1 4 . 1 . . 2 1 Processor 2 | . . . 1 . . 1 . Hackware . | . . . . . . . . Protection 6 | . . . 3 1 1 1 . Artifact . | . . . . . . . . Weapon 47 | 3 3 6 9 5 3 14 4 Energy Gun 19 | 1 2 3 4 3 1 5 . Energy Cannon 5 | . . 1 1 1 1 1 . Ballistic Gun 13 | 2 . 2 4 . . 4 1 Ballistic Cannon 3 | . . . . . 1 1 1 Launcher 2 | . . . . . . 1 1 Special Weapon 2 | . 1 . . . . . 1 Impact Weapon 1 | . . . . . . 1 . Slashing Weapon 2 | . . . . 1 . 1 . Piercing Weapon . | . . . . . . . . Special Melee Weapon . | . . . . . . . . Unidentified Prototypes 2 | . . . 1 . . 1 . Parts Lost 79 | . . 5 8 12 4 35 15 Power 9 | . . . 2 1 1 3 2 Propulsion 28 | . . . 2 5 3 13 5 Utility 14 | . . . 1 1 . 9 3 Weapon 28 | . . 5 3 5 . 10 5 Highest Loss Streak 11 | . . 2 4 9 3 11 7 Average Slot Usage (%) 86 | . 99 99 96 92 86 69 76 Engine 5 | . 14 11 8 3 . . 4 Core 2 | . . . . 3 6 3 . Treads 11 | . 28 7 28 15 3 1 3 Leg 16 | . . 36 5 16 29 16 8 Wheel 1 | . . . . . . 4 2 Device 3 | . . . . . . 6 16 Storage 18 | . 27 22 18 18 15 13 18 Processor 4 | . . . 9 9 7 4 . Protection 3 | . . . 8 8 7 2 . Energy Gun 5 | . 16 7 7 8 . 3 . Energy Cannon 1 | . . 4 3 . 2 1 . Ballistic Gun 5 | . 8 8 6 3 . 5 9 Ballistic Cannon 1 | . . . . . 6 1 . Slashing Weapon 1 | . . . . 4 4 . . Naked Turns . | . . . . . . . . Heaviest Build 74 | 13 43 44 55 49 68 74 62 Greatest Support 100 | 40 40 60 80 80 100 100 36 Greatest Overweight (x) 18 | . 1 2 . 11 3 2 18 Average Overweight (x) . | . . . . . 1 . 1 Largest Inventory Capacity 16 | 6 16 16 16 16 16 16 16 Average Capacity 14 | 5 12 16 16 16 16 12 15 Most Carried 16 | 2 16 16 16 16 16 16 6 Average Carried 11 | . 10 13 14 14 15 10 3 Final Capacity 16 | 6 16 16 16 16 16 10 16 Final Carried 16 | 2 16 14 14 14 16 7 . Class Distribution -------------------- 57% | Scavenger-Mutant 35% | Mutant 4% | Gunner Dominant Class ---------------- Mutant | -10/Materials Scavenger-Mutant | -9/Materials Scavenger-Mutant | -8/Materials Scavenger-Mutant | -8/Storage Scavenger-Mutant | -7/Factory Mutant | -6/Factory Scavenger-Mutant | -6/Extension Resources | -11 -10 -9 -8 -8 -7 -6 -6 ----------- Run | Scr Mat Mat Mat Sto Fac Fac Ext Matter Collected 2282 | 234 172 250 324 199 205 706 192 Remotely . | . . . . . . . . Salvage Created 4297 | . 327 767 891 772 492 690 358 Parts 241 | . 24 42 54 47 19 39 16 Haulers Intercepted 3 | . . 2 1 . . . . Recyclers Shooed 7 | . 2 2 3 . . . . Parts Field Recycled . | . . . . . . . . Retrieved Matter . | . . . . . . . . Parts Self-Destructed . | . . . . . . . . Prevented . | . . . . . . . . Kills | -11 -10 -9 -8 -8 -7 -6 -6 ------- Run | Scr Mat Mat Mat Sto Fac Fac Ext Combat Hostiles Destroyed 77 | . 10 15 15 18 8 11 . Melee 5 | . . . . 5 . . . Guns 52 | . 8 11 10 13 . 10 . Cannons 18 | . 1 3 5 . 8 1 . AOE 1 | . 1 . . . . . . Classes Destroyed 14 | . 3 4 4 . 2 1 . Worker 4 | . . 2 . . . . 2 Builder 1 | . . . 1 . . . . Tunneler 2 | . . . . . . 1 1 Hauler 3 | . . 2 1 . . . . Recycler 10 | . . 2 2 . 3 1 2 Operator 2 | . . . 2 . . . . Watcher 4 | . 1 . 1 1 . . 1 Swarmer 18 | . 3 6 3 3 . 3 . Grunt 33 | . 7 5 6 9 5 1 . Brawler 2 | . . . 1 . . 1 . Duelist 3 | . . . 1 2 . . . Sentry 14 | . . 4 4 4 1 1 . Hunter 4 | . . . . . 1 3 . Programmer 3 | . . . . . 1 2 . Best Kill Streak 8 | . 2 4 8 5 3 3 4 Combat Bots Only 5 | . 2 3 5 4 2 3 . Max Kills in Single Turn 2 | . 1 2 2 1 1 1 2 Gunslinging 1 | . . 1 . . . . . Exploded 1 | . 1 . . . . . . Melee 1 | . . . . 1 . . . Uniques/NPCs Destroyed . | . . . . . . . . Combat | -11 -10 -9 -8 -8 -7 -6 -6 -------- Run | Scr Mat Mat Mat Sto Fac Fac Ext Damage Taken 11188 | . 325 1030 1074 2041 710 4565 1443 Core 1510 | . 33 178 59 320 61 525 334 Absorbed by Shields . | . . . . . . . . Core Remaining (%) 72 | 100 86 55 . 31 91 . . Volleys Fired 287 | . 26 52 66 33 45 53 12 Largest 3 | . 2 2 2 2 2 3 1 Hottest 193 | . 145 145 160 160 128 193 33 Shots Fired 471 | . 52 100 112 48 60 88 11 Gun 349 | . 48 84 85 46 1 76 9 Cannon 113 | . . 14 27 2 59 11 . Launcher 3 | . . . . . . 1 2 Special 6 | . 4 2 . . . . . Kinetic 244 | . 22 36 50 11 45 71 9 Thermal 145 | . 4 16 61 37 15 12 . Explosive 3 | . . . . . . 1 2 Electromagnetic 79 | . 26 48 1 . . 4 . Robot Hit Streak 23 | . 7 14 23 11 10 10 10 Robot Miss Streak 6 | . 4 3 3 3 4 6 . Penetration Max 3 | . . . . . . 1 3 Secondary Targets 2 | . . 2 . . . . . Max Gunslinging Chain 1 | . . 1 . . . . . Shots Hit Robots 350 | . 28 69 93 60 37 52 11 Core Hits 181 | . 17 30 41 38 18 27 10 Critical Hits 8 | . . . . . 2 1 5 Critical Kills 5 | . . . . . 1 1 3 Critical Parts Destroyed 3 | . . . . . 1 . 2 Melee Attacks 51 | . . . . 22 1 26 2 Impact 6 | . . . . . . 4 2 Slashing 45 | . . . . 22 1 22 . Piercing . | . . . . . . . . Sneak Attacks 2 | . . . . 1 1 . . Combat Hostiles . | . . . . . . . . Follow-up Attacks . | . . . . . . . . Damage Inflicted 7688 | . 547 1378 1553 1349 1129 1435 297 Guns 4305 | . 440 840 1068 766 15 1028 148 Cannons 1863 | . . 174 485 52 1026 126 . Explosions 557 | . 59 306 . . . 104 88 Melee 781 | . . . . 531 88 101 61 Ramming 86 | . . 10 . . . 76 . Kinetic 3127 | . 165 288 485 104 899 1038 148 Thermal 2509 | . 107 390 1050 714 142 106 . Explosive 330 | . . 138 . . . 104 88 Electromagnetic 855 | . 275 552 18 . . 10 . Impact 162 | . . . . . . 101 61 Slashing 619 | . . . . 531 88 . . Piercing . | . . . . . . . . Highest Corruption 23 | . 2 . . . 1 23 23 Average Corruption 12 | . 2 . . . 1 16 23 Corruption Purged . | . . . . . . . . Effects 121 | . . . . . 5 82 34 Message Errors 19 | . . . . . 4 10 5 Matter Fused 21 | . . . . . . 16 5 Heat Flow Errors 8 | . . . . . . 5 3 Energy Discharges 10 | . . . . . . 7 3 Data Loss (minor) 11 | . . . . . 1 7 3 Data Loss (major) 6 | . . . . . . 4 2 Misfires 1 | . . . . . . 1 . Alerts 2 | . . . . . . 2 . Misdirections 19 | . . . . . . 12 7 Targeting Errors 20 | . . . . . . 15 5 Weapon Failures 4 | . . . . . . 3 1 Overload Shots . | . . . . . . . . Overflow Damage 268 | . . 20 26 69 111 34 8 Projectiles 137 | . . . 26 . 111 . . Explosions 20 | . . 20 . . . . . Melee 111 | . . . . 69 . 34 8 Knockbacks 18 | . . . . . 16 2 . Impact 2 | . . . . . . 2 . Kinetic 15 | . . . . . 15 . . Secondary 1 | . . . . . 1 . . Self-Inflicted Damage 195 | . 37 121 . . . 11 26 Shots 6 | . 1 3 . . . . 2 Rammed 5 | . . 2 . . . 3 . Targets Rammed 19 | . . 4 . . . 15 . Kicked 13 | . . 1 . . . 12 . Crushed 1 | . . 1 . . . . . Highest Temperature 572 | . 120 257 572 568 507 258 250 Average Temperature 136 | . 35 67 179 167 149 90 112 Received Heat Transfer 2133 | . 102 270 342 828 186 219 186 Effects 35 | . . . 19 8 8 . . Shutdowns 5 | . . . 2 1 2 . . Energy Bleed 3 | . . . 3 . . . . Interference 11 | . . . 5 3 3 . . Matter Decay 3 | . . . 2 1 . . . Short Circuit 1 | . . . . 1 . . . Damage (minor) 4 | . . . 3 1 . . . Damage (major) 8 | . . . 4 1 3 . . Siege Activations . | . . . . . . . . Robots Corrupted 1 | . . 1 . . . . . Combat Hostiles 1 | . . 1 . . . . . Parts Fried 3 | . 1 . . . . . 2 Impact Corruptions 3 | . . . . . . 2 1 Robots Melted . | . . . . . . . . Combat Hostiles . | . . . . . . . . Parts Melted 9 | . 1 1 4 2 . 1 . Heat Transferred 5299 | . 200 770 2225 1619 287 198 . Parts Sabotaged . | . . . . . . . . Parts Stolen . | . . . . . . . . Parts Stripped . | . . . . . . . . Power Chain Reactions 4 | . 1 3 . . . . . Missiles Intercepted . | . . . . . . . . Alert | -11 -10 -9 -8 -8 -7 -6 -6 ------- Run | Scr Mat Mat Mat Sto Fac Fac Ext Peak Influence 372 | . 229 285 223 372 159 131 66 Average Influence 92 | . 79 142 105 243 81 40 23 Maximum Alert Level 1 | . 1 1 1 1 . . . Low Security (%) 86 | 100 87 76 98 19 100 100 100 Level 1 13 | . 12 23 1 80 . . . Level 2 . | . . . . . . . . Level 3 . | . . . . . . . . Level 4 . | . . . . . . . . Level 5 . | . . . . . . . . High Security . | . . . . . . . . Max Security . | . . . . . . . . Squads Dispatched 19 | . 3 . 2 5 6 3 . Investigation 6 | . 2 . . . 3 1 . Extermination 3 | . . . . . 1 2 . Reinforcement 6 | . 1 . 1 2 2 . . Assault . | . . . . . . . . Garrison 4 | . . . 1 3 . . . Intercept . | . . . . . . . . Construction Impeded . | . . . . . . . . Haulers Reinforced . | . . . . . . . . Stealth | -11 -10 -9 -8 -8 -7 -6 -6 --------- Run | Scr Mat Mat Mat Sto Fac Fac Ext Distress Signals 10 | . 2 2 3 2 . 1 . Communications Jammed . | . . . . . . . . Distress Signals . | . . . . . . . . Times Spotted 145 | . 18 32 24 33 13 19 6 Peak Tracking Total 7 | . 4 5 5 7 2 5 5 Tactical Retreats 19 | . 4 8 2 1 . 4 . Traps | -11 -10 -9 -8 -8 -7 -6 -6 ------- Run | Scr Mat Mat Mat Sto Fac Fac Ext Traps Triggered 6 | . 3 . . . 3 . . Indirectly . | . . . . . . . . Trap Hack Attempts . | . . . . . . . . Triggered . | . . . . . . . . Disarmed . | . . . . . . . . Reprogrammed . | . . . . . . . . Reused . | . . . . . . . . Traps Extracted . | . . . . . . . . Installed . | . . . . . . . . Triggered . | . . . . . . . . Machines | -11 -10 -9 -8 -8 -7 -6 -6 ---------- Run | Scr Mat Mat Mat Sto Fac Fac Ext Machines Disabled 3 | . . 2 . . . 1 . Max in Single Turn 2 | . . 2 . . . 1 . Machines Sabotaged . | . . . . . . . . Garrisons Compromised . | . . . . . . . . Overloaded Fab Kills . | . . . . . . . . Fab Network Shutdowns . | . . . . . . . . Hacking | -11 -10 -9 -8 -8 -7 -6 -6 --------- Run | Scr Mat Mat Mat Sto Fac Fac Ext Machines Accessed 14 | . 3 3 2 2 3 1 . Terminals 10 | . 1 3 1 1 3 1 . Fabricators . | . . . . . . . . Repair Stations 1 | . . . 1 . . . . Recycling Units 3 | . 2 . . 1 . . . Scanalyzers . | . . . . . . . . Garrison Access . | . . . . . . . . Total Hacks 41 | . 8 8 4 8 10 3 . Successful 20 | . 5 4 3 3 4 1 . Failed 21 | . 3 4 1 5 6 2 . Catastrophic 2 | . . . . . 2 . . Database Lockouts . | . . . . . . . . Manual . | . . . . . . . . Terminals 26 | . 1 8 1 3 10 3 . Fabricators . | . . . . . . . . Repair Stations 3 | . . . 3 . . . . Recycling Units 12 | . 7 . . 5 . . . Scanalyzers . | . . . . . . . . Garrison Access . | . . . . . . . . Terminal Hacks 12 | . 1 4 1 1 4 1 . Record 1 | . 1 . . . . . . Open Door 1 | . . . . . . 1 . Branch Access Points 1 | . . 1 . . . . . Emergency Access Points 1 | . . . . . 1 . . Unreport Threat 3 | . . . 1 . 2 . . Locate Traps 1 | . . 1 . . . . . Zone Layout 4 | . . 2 . 1 1 . . Fabricator Hacks . | . . . . . . . . Repair Station Hacks 2 | . . . 2 . . . . Scan Component 1 | . . . 1 . . . . Repair 1 | . . . 1 . . . . Recycling Unit Hacks 6 | . 4 . . 2 . . . Report Inventory 3 | . 2 . . 1 . . . Retrieve Matter 2 | . 1 . . 1 . . . Retrieve Components 1 | . 1 . . . . . . Scanalyzer . | . . . . . . . . Garrison Access Hacks . | . . . . . . . . Unauthorized Hacks . | . . . . . . . . Terminals . | . . . . . . . . Fabricators . | . . . . . . . . Repair Stations . | . . . . . . . . Recycling Units . | . . . . . . . . Scanalyzers . | . . . . . . . . Garrison Access . | . . . . . . . . Data Cores Recovered 2 | . . . 2 . . . . Used . | . . . . . . . . Hacking Detections 11 | . 2 2 1 2 3 1 . Full Trace Events 4 | . . . . . 3 1 . Feedback Events . | . . . . . . . . Feedback Blocked . | . . . . . . . . Robot Schematics Acquired . | . . . . . . . . Robots Built . | . . . . . . . . Matter . | . . . . . . . . Time . | . . . . . . . . Total Robot Build Rating . | . . . . . . . . Part Schematics Acquired . | . . . . . . . . Parts Built . | . . . . . . . . Matter . | . . . . . . . . Time . | . . . . . . . . Total Part Build Rating . | . . . . . . . . Parts Repaired 1 | . . . 1 . . . . Time 26 | . . . 26 . . . . Parts Recycled . | . . . . . . . . Recycled Matter . | . . . . . . . . Retrieved Matter . | . . . . . . . . Retrieved Components 10 | . 10 . . . . . . Parts Scanalyzed . | . . . . . . . . Part Schematics Acquired . | . . . . . . . . Parts Damaged . | . . . . . . . . Bothacking | -11 -10 -9 -8 -8 -7 -6 -6 ------------ Run | Scr Mat Mat Mat Sto Fac Fac Ext Used RIF Installer . | . . . . . . . . Robots Hacked . | . . . . . . . . Non-combat . | . . . . . . . . Combat . | . . . . . . . . Robot Hacks Applied . | . . . . . . . . Relay Couplers Released . | . . . . . . . . Robots Rewired . | . . . . . . . . Allies Hacked . | . . . . . . . . Hacks Repelled . | . . . . . . . . Allies | -11 -10 -9 -8 -8 -7 -6 -6 -------- Run | Scr Mat Mat Mat Sto Fac Fac Ext Total Allies . | . . . . . . . . Largest Group . | . . . . . . . . Highest-Rated Group . | . . . . . . . . Highest-Rated Ally . | . . . . . . . . Total Orders . | . . . . . . . . Ally Attacks . | . . . . . . . . Total Damage . | . . . . . . . . Kills . | . . . . . . . . Allies Corrupted . | . . . . . . . . Allies Melted . | . . . . . . . . Intel | -11 -10 -9 -8 -8 -7 -6 -6 ------- Run | Scr Mat Mat Mat Sto Fac Fac Ext Robot Analysis Total . | . . . . . . . . Derelict Logs Recovered . | . . . . . . . . Drone Launches . | . . . . . . . . Drone Recoveries . | . . . . . . . . Exploration | -11 -10 -9 -8 -8 -7 -6 -6 ------------- Run | Scr Mat Mat Mat Sto Fac Fac Ext Turns Passed 5911 | 75 838 642 677 649 1056 1506 468 Spaces Moved 2883 | 43 418 283 258 264 548 826 243 Core 12 | 4 . . . 2 . . 6 Treads 1076 | 39 418 72 258 141 145 3 . Legs 1567 | . . 211 . 121 403 657 175 Wheels 224 | . . . . . . 166 58 Hover 4 | . . . . . . . 4 Flight . | . . . . . . . . Fastest Speed 50 | 50 160 120 160 120 125 93 86 Average Speed 151 | 149 166 152 160 159 160 130 154 Slowest Speed 950 | 160 180 200 160 600 230 190 950 Overloaded Moves . | . . . . . . . . Propulsion Burnouts . | . . . . . . . . Robots Hopped . | . . . . . . . . Cave-ins Triggered 4 | . . . . . . 4 . Exploration Rate (%) 26 | 4 60 32 26 43 15 13 22 Regions Visited 7 Branch Regions 2 Pre-discovered Areas . | . . . . . . . . Known Exits Taken . | . . . . . . . . Unknown Exits Taken 7 | 1 1 1 1 1 1 1 . Scrap Searched . | . . . . . . . . Spaces Dug 40 | . 2 . . . 1 32 5 Terrain Destroyed 106 | . 8 32 8 . 10 38 10 Melee 22 | . . . . . . 22 . Projectile 26 | . 2 . 8 . 10 6 . AOE 58 | . 6 32 . . . 10 10 Actions | -11 -10 -9 -8 -8 -7 -6 -6 --------- Run | Scr Mat Mat Mat Sto Fac Fac Ext Total 3860 | 50 503 388 411 401 667 1123 317 Wait 326 | . 27 15 31 59 18 127 49 Move 2872 | 42 417 282 257 263 547 821 243 Hop . | . . . . . . . . Pick Up 77 | 1 18 8 18 2 11 19 . Fast Attach 49 | 6 1 2 3 8 8 17 4 Attach 52 | . . 7 9 6 3 20 7 Detach 3 | . . . 1 . 1 1 . Swap 46 | 1 6 9 10 5 8 7 . Drop 64 | . 8 9 16 3 15 13 . Fire 287 | . 26 52 66 33 45 53 12 Melee 51 | . . . . 22 1 26 2 Ram 3 | . . . . . . 3 . Kick 13 | . . 1 . . . 12 . Crush 3 | . . 3 . . . . . Escape Stasis 14 | . . . . . 10 4 . Rewire . | . . . . . . . . Trap . | . . . . . . . . Miscellaneous . | . . . . . . . . Route ------- -11/Scrapyard -10/Materials (discovered 2 exits: *Mat / [*Min]) -9/Materials (discovered 3 exits: *Mat / *Min x2) -8/Materials -8/Storage -7/Factory -6/Factory -6/Extension History --------- Turn | Location | Event 3 | -11/Scrapyard | Discovered new exit (range 15) 76 | -11/Scrapyard | Entered Materials 311 | -10/Materials | Build established: Mutant 397 | -10/Materials | Discovered new exit (range 16) 900 | -10/Materials | Discovered new exit (range 8) 914 | -10/Materials | Entered another Materials area 914 | -9/Materials | Evolved 2 slots: Propulsion x2 1204 | -9/Materials | Build established: Scavenger-Mutant 1254 | -9/Materials | Identified exit to Mines 1532 | -9/Materials | Discovered new exit (range 15) 1556 | -9/Materials | Entered another Materials area 1556 | -8/Materials | Evolved 2 slots: Utility x2 2072 | -8/Materials | Discovered new exit (range 16) 2077 | -8/Materials | Lost 4 parts (1p1n1u1w) 2086 | -8/Materials | Garrison activated, responded to threat 2186 | -8/Materials | Repaired Lrg. Storage Unit 2233 | -8/Materials | Entered Storage 2536 | -8/Storage | Garrison activated, responded to threat 2563 | -8/Storage | Lost 9 parts (1p5n1u2w) 2567 | -8/Storage | Core integrity fell below 50% 2860 | -8/Storage | Discovered new exit (range 16) 2882 | -8/Storage | Entered Factory 2882 | -7/Factory | Evolved 2 slots: Propulsion x1, Utility x1 3260 | -7/Factory | Lost 3 parts (1p2n) 3872 | -7/Factory | Discovered new exit (range 14) 3920 | -7/Factory | Build established: Mutant 3938 | -7/Factory | Entered another Factory area 3938 | -6/Factory | Evolved 2 slots: Utility x1, Weapon x1 4299 | -6/Factory | Crushed by falling debris 4327 | -6/Factory | Crushed by falling debris 4328 | -6/Factory | Crushed by falling debris 4329 | -6/Factory | System corruption reached 10% 4339 | -6/Factory | Crushed by falling debris 4359 | -6/Factory | Lost 4 parts (2u2w) 4598 | -6/Factory | Lost 9 parts (1p5n1u2w) 4677 | -6/Factory | Lost 5 parts (1p2n2u) 5139 | -6/Factory | Core integrity fell below 50% 5187 | -6/Factory | Lost 11 parts (1p4n3u3w) 5434 | -6/Factory | Discovered new exit (range 10) 5444 | -6/Factory | Entered Extension 5486 | -6/Extension | Build established: Scavenger-Mutant 5688 | -6/Extension | Spotted B-75 Beast 5797 | -6/Extension | Core integrity fell below 20% 5819 | -6/Extension | Disrupted transfer network 5830 | -6/Extension | Lost 7 parts (1p3n2u1w) 5887 | -6/Extension | Lost 3 parts (1u2w) 5912 | -6/Extension | Destroyed by G-50 Soldier with Heavy Laser Last Messages --------------- 05843_ Adv. ECM Suite destroyed. 05843_ Acquired Wheel. 05844_ Acquired 29 matter. 05846_ R-10 Processor collects Med. Storage Unit. 05847_ Acquired Lgt. Ion Engine. 05849_ Acquired Wheel. 05850_ R-10 Processor collects Med. Matter Pod. 05853_ Acquired Com. Wheel. 05853_ R-10 Processor collects Seismic Analyzer. 05856_ Hyp. Gauss Rifle destroyed. 05859_ System corrupted: Energy discharge (-17). 05878_ N,DTZPE:RKGDX#CZULTBJVALRRX4P0